[Event "FIDE Womens Grand Swiss 2021"]
[Site "Riga"]
[Date "2021.10.27"]
[Round "1.23"]
[White "Rogule, Laura"]
[Black "Osmak, Iulija"]
[Result "0-1"]
[ECO "A20"]
[WhiteElo "2289"]
[BlackElo "2423"]
[Annotator "NA"]
[PlyCount "122"]
[EventDate "2021.10.27"]
[EventType "swiss"]
[EventCountry "LAT"]
[Tiebreak "Cut1 Buchholz+Sonneborn-Berger (Swiss)"]
[SourceTitle "playchess.com"]
[Source "ChessBase"]
[SourceQuality "1"]
[TimeControl "40/6000+30:20/3000+30:900+30"]

1. c4 {[%emt 0:10:03]} e5 {[%emt 0:10:04]} 2. g3 {[%emt 0:00:27]} d6 {[%emt 0:
02:01]} 3. Bg2 {[%emt 0:00:50]} g6 {[%emt 0:00:33]} 4. d4 {[%emt 0:08:13]} Bg7
{[%emt 0:05:58]} 5. dxe5 {[%emt 0:03:53]} dxe5 {[%emt 0:00:10]} 6. Qxd8+ {
[%emt 0:02:01]} Kxd8 {[%emt 0:00:04]} 7. Nc3 {[%emt 0:12:12]} c6 {[%emt 0:02:
13]} 8. Bd2 {[%emt 0:09:39]} Be6 {[%emt 0:04:51]} 9. O-O-O {[%emt 0:18:36]} Nd7
{[%emt 0:10:25]} 10. b3 {[%emt 0:06:57]} Kc7 {[%emt 0:15:59]} 11. Ne4 {[%emt 0:
05:07]} h6 {[%emt 0:06:13]} 12. Ba5+ {[%emt 0:04:57]} b6 {[%emt 0:00:17]} 13.
Bb4 {[%emt 0:03:17]} Bf8 {[%emt 0:08:20]} 14. Bd6+ {[%emt 0:03:39]} Bxd6 {
[%emt 0:01:32]} 15. Rxd6 {[%emt 0:00:27]} Ne7 {[%emt 0:02:39]} 16. Rd2 {
[%emt 0:06:38]} f5 {[%emt 0:04:29]} 17. Nc3 {[%emt 0:00:31]} g5 {[%emt 0:08:16]
} 18. Nf3 {[%emt 0:02:50]} g4 {[%emt 0:02:44]} 19. Nh4 {[%emt 0:00:18]} Nf6 {
[%emt 0:04:33]} 20. e4 {[%emt 0:02:47]} Rad8 {[%emt 0:09:10]} 21. Rxd8 {
[%emt 0:01:40]} Rxd8 {[%emt 0:00:05]} 22. exf5 {[%emt 0:00:15]} Nxf5 {[%emt 0:
01:32]} 23. Ng6 {[%emt 0:00:26]} Nd7 {[%emt 0:01:55]} 24. Re1 {[%emt 0:00:55]}
Re8 {[%emt 0:00:24]} 25. Be4 {[%emt 0:02:55]} Nd4 {[%emt 0:01:13]} 26. Nh4 {
[%emt 0:02:01]} Rf8 {[%emt 0:01:01]} 27. Nd1 {[%emt 0:00:22]} Kd6 {[%emt 0:01:
30]} 28. Re3 {[%emt 0:01:12]} Nc5 {[%emt 0:01:32]} 29. Ng6 {[%emt 0:00:44]} Rf6
{[%emt 0:01:03]} 30. Bb1 {[%emt 0:00:41]} Nf3 {[%emt 0:01:24]} 31. Nc3 {
[%emt 0:00:37]} a5 {[%emt 0:01:48]} 32. Re2 {[%emt 0:00:36]} Bf7 {[%emt 0:01:
01]} 33. Nh4 {[%emt 0:00:28]} Nxh4 {[%emt 0:00:51]} 34. gxh4 {[%emt 0:00:02]}
Rf3 {[%emt 0:01:01]} 35. Nd1 {[%emt 0:00:16]} Rh3 {[%emt 0:00:27]} 36. Bf5 {
[%emt 0:01:15]} Be6 {[%emt 0:00:36]} 37. Ne3 {[%emt 0:00:30]} Rxe3 {[%emt 0:00:
30]} 38. Rd2+ {[%emt 0:00:22]} Ke7 {[%emt 0:00:15]} 39. fxe3 {[%emt 0:00:22]}
Bxf5 {[%emt 0:00:04]} 40. Kb2 {[%emt 0:00:10]} Ne4 {[%emt 0:00:40]} 41. Rd1 {
[%emt 0:50:25]} Be6 {[%emt 0:51:00]} 42. Kc2 {[%emt 0:00:57]} Nd6 {[%emt 0:00:
34]} 43. Kd3 {[%emt 0:00:56]} Bf5+ {[%emt 0:00:27]} 44. Kc3 {[%emt 0:00:00]}
Be4 {[%emt 0:00:00]} 45. b4 {[%emt 0:00:00]} axb4+ {[%emt 0:00:00]} 46. Kxb4 {
[%emt 0:00:00]} c5+ {[%emt 0:00:00]} 47. Kc3 {[%emt 0:00:00]} Kd7 {[%emt 0:00:
00]} 48. h5 {[%emt 0:00:00]} Bf3 {[%emt 0:00:00]} 49. Ra1 {[%emt 0:00:00]} Be2
{[%emt 0:00:00]} 50. a4 {[%emt 0:00:00]} Bxc4 {[%emt 0:00:00]} 51. a5 {[%emt 0:
00:00]} bxa5 {[%emt 0:00:00]} 52. Rxa5 {[%emt 0:00:00]} Bf7 {[%emt 0:00:00]}
53. Ra8 {[%emt 0:00:00]} Bxh5 {[%emt 0:00:00]} 54. Rh8 {[%emt 0:00:00]} Nf7 {
[%emt 0:00:00]} 55. Rg8 {[%emt 0:00:00]} Kd6 {[%emt 0:00:00]} 56. e4 {[%emt 0:
00:00]} Ng5 {[%emt 0:00:00]} 57. Rh8 {[%emt 0:03:26]} Nxe4+ {[%emt 0:00:00]}
58. Kd3 {[%emt 0:00:26]} Kd5 {[%emt 0:00:00]} 59. Rxh6 {[%emt 0:00:20]} Bf7 {
[%emt 0:00:00]} 60. Ke3 {[%emt 0:01:11]} Be6 {[%emt 0:00:13]} 61. Rh4 {[%emt 0:
16:59]} Nd6 {[%emt 0:15:16]} 0-1

[Event "FIDE Womens Grand Swiss 2021"]
[Site "Riga"]
[Date "2021.10.27"]
[Round "1.24"]
[White "Atalik, Ekaterina"]
[Black "Golsta, Madara"]
[Result "1-0"]
[ECO "A49"]
[WhiteElo "2420"]
[BlackElo "2003"]
[Annotator "NA RC"]
[PlyCount "55"]
[EventDate "2021.10.27"]
[EventType "swiss"]
[EventCountry "LAT"]
[Tiebreak "Cut1 Buchholz+Sonneborn-Berger (Swiss)"]
[SourceTitle "playchess.com"]
[Source "ChessBase"]
[SourceQuality "1"]
[TimeControl "40/6000+30:20/3000+30:900+30"]

1. d4 {[%emt 0:10:06]} Nf6 {[%emt 0:10:12]} 2. Nf3 {[%emt 0:00:23]} g6 {
[%emt 0:00:18]} 3. g3 {[%emt 0:00:28]} Bg7 {[%emt 0:00:19]} 4. Bg2 {[%emt 0:00:
05]} O-O {[%emt 0:00:41]} 5. O-O {[%emt 0:00:12]} c5 {[%emt 0:00:31]} 6. dxc5 {
[%emt 0:00:57]} Qa5 {[%emt 0:04:05]} 7. Be3 {[%emt 0:03:34]} Ng4 {[%emt 0:06:
37]} 8. Bd4 {[%emt 0:03:16]} e5 {[%emt 0:03:19]} 9. Bc3 {[%emt 0:00:28]} Qxc5 {
[%emt 0:01:22]} 10. h3 {[%emt 0:05:37]} Nh6 {[%emt 0:03:03]} 11. Nbd2 {[%emt 0:
02:23]} Nc6 {[%emt 0:13:53]} 12. Ne4 {[%emt 0:03:11]} Qb6 {[%emt 0:05:22]} 13.
Nd6 {[%emt 0:08:32]} Nd4 {[%emt 0:05:44]} 14. Nxc8 {[%emt 0:09:15]} Raxc8 {
[%emt 0:00:38]} 15. e3 {[%emt 0:03:46]} Nxf3+ {[%emt 0:05:30]} 16. Qxf3 {
[%emt 0:01:01]} Rc7 {[%emt 0:09:29]} 17. Qd5 {[%emt 0:04:49]} Qe6 {[%emt 0:02:
13]} 18. Rfd1 {[%emt 0:07:45]} Nf5 {[%emt 0:02:18]} 19. Rd2 {[%emt 0:03:44]}
Ne7 {[%emt 0:03:32]} 20. Qb3 {[%emt 0:04:43]} d5 {[%emt 0:07:40]} 21. Rad1 {
[%emt 0:06:32]} h5 {[%emt 0:06:54]} 22. h4 {[%emt 0:04:56]} e4 {[%emt 0:01:26]}
23. Bb4 {[%emt 0:01:26]} Rfc8 {[%emt 0:06:00]} 24. c3 {[%emt 0:10:24]} Bf6 {
[%emt 0:06:18]} 25. Bxe7 {[%emt 0:00:58]} Qxe7 {[%emt 0:00:27]} 26. Rxd5 {
[%emt 0:00:48]} g5 {[%emt 0:02:21]} 27. hxg5 {[%emt 0:01:41]} Bxg5 {[%emt 0:00:
06]} 28. R1d4 {[%emt 0:03:05]} 1-0

[Event "FIDE Womens Grand Swiss 2021"]
[Site "Riga"]
[Date "2021.10.28"]
[Round "2.1"]
[White "Osmak, Iulija"]
[Black "Dzagnidze, Nana"]
[Result "0-1"]
[ECO "A13"]
[WhiteElo "2423"]
[BlackElo "2524"]
[Annotator "ChessBase"]
[PlyCount "94"]
[EventDate "2021.10.27"]
[EventType "swiss"]
[EventCountry "LAT"]
[Tiebreak "Cut1 Buchholz+Sonneborn-Berger (Swiss)"]
[SourceTitle "playchess.com"]
[Source "ChessBase"]
[SourceQuality "1"]
[TimeControl "40/6000+30:20/3000+30:900+30"]

1. c4 {[%emt 0:10:03]} e6 {[%emt 0:10:31]} 2. Nf3 {[%emt 0:01:11]} d5 {[%emt 0:
01:14]} 3. g3 {[%emt 0:00:18]} Nf6 {[%emt 0:00:15]} 4. Bg2 {[%emt 0:00:06]}
dxc4 {[%emt 0:05:22]} 5. Qa4+ {[%emt 0:03:23]} Nbd7 {[%emt 0:03:09]} 6. Qxc4 {
[%emt 0:00:21]} c5 {[%emt 0:00:10]} 7. O-O {[%emt 0:05:40]} Be7 {[%emt 0:02:23]
} 8. Qc2 {[%emt 0:11:15]} Nb6 {[%emt 0:15:35]} 9. Rd1 {[%emt 0:11:45]} Bd7 {
[%emt 0:03:04]} 10. Ne5 {[%emt 0:01:15]} Nbd5 {[%emt 0:02:41]} 11. Nc3 {
[%emt 0:09:12]} Rc8 {[%emt 0:04:28]} 12. b3 {[%emt 0:01:51]} Nb4 {[%emt 0:06:
58]} 13. Qb1 {[%emt 0:00:41]} Nc6 {[%emt 0:01:11]} 14. Nxd7 {[%emt 0:00:33]}
Qxd7 {[%emt 0:00:05]} 15. Bb2 {[%emt 0:01:57]} O-O {[%emt 0:00:11]} 16. d3 {
[%emt 0:08:10]} Rfd8 {[%emt 0:07:06]} 17. Qc2 {[%emt 0:00:22]} Ne8 {[%emt 0:02:
54]} 18. Rac1 {[%emt 0:05:35]} f5 {[%emt 0:02:16]} 19. Qb1 {[%emt 0:06:47]} Bf6
{[%emt 0:06:11]} 20. e3 {[%emt 0:01:12]} b6 {[%emt 0:03:46]} 21. a3 {[%emt 0:
05:17]} Nd6 {[%emt 0:01:59]} 22. Ba1 {[%emt 0:01:22]} Nf7 {[%emt 0:03:26]} 23.
b4 {[%emt 0:02:46]} Nce5 {[%emt 0:09:47]} 24. bxc5 {[%emt 0:07:28]} bxc5 {
[%emt 0:00:03]} 25. d4 {[%emt 0:00:39]} cxd4 {[%emt 0:00:03]} 26. Rxd4 {
[%emt 0:00:07]} Qe7 {[%emt 0:00:04]} 27. Rxd8+ {[%emt 0:00:23]} Rxd8 {[%emt 0:
00:07]} 28. Qb3 {[%emt 0:01:54]} Ng5 {[%emt 0:03:07]} 29. Qb4 {[%emt 0:10:20]}
Qd7 {[%emt 0:11:04]} 30. Qa4 {[%emt 0:02:35]} Ngf3+ {[%emt 0:00:50]} 31. Kh1
Nd3 {[%emt 0:01:35]} 32. Rc2 {[%emt 0:01:01]} Nfe1 {[%emt 0:02:11]} 33. Qxd7 {
[%emt 0:00:07]} Rxd7 {[%emt 0:00:02]} 34. Ra2 {[%emt 0:01:21]} Rc7 {[%emt 0:00:
33]} 35. Ne2 {[%emt 0:00:25]} Nxf2+ {[%emt 0:02:20]} 36. Kg1 {[%emt 0:00:01]}
Ng4 {[%emt 0:00:19]} 37. Bxf6 {[%emt 0:00:21]} gxf6 {[%emt 0:00:07]} 38. Nf4 {
[%emt 0:01:14]} Rc1 {[%emt 0:00:14]} 39. Bf1 {[%emt 0:00:30]} Nxe3 {[%emt 0:01:
33]} 40. Kf2 {[%emt 0:00:29]} Nxf1 {[%emt 0:00:59]} 41. Kxf1 {[%emt 0:22:23]}
Nd3+ {[%emt 0:21:28]} 42. Ke2 {[%emt 0:00:11]} Nxf4+ {[%emt 0:00:10]} 43. gxf4
{[%emt 0:00:02]} Rc4 {[%emt 0:00:26]} 44. Rb2 {[%emt 0:03:03]} Rxf4 {[%emt 0:
00:25]} 45. Rb8+ {[%emt 0:00:20]} Kf7 {[%emt 0:00:05]} 46. Rb7+ {[%emt 0:00:02]
} Kg6 {[%emt 0:00:05]} 47. Rxa7 {[%emt 0:00:01]} Rh4 {[%emt 0:00:06]} 0-1

[Event "FIDE Womens Grand Swiss 2021"]
[Site "Riga"]
[Date "2021.10.28"]
[Round "2.4"]
[White "Lei, Tingjie"]
[Black "Atalik, Ekaterina"]
[Result "1-0"]
[ECO "A62"]
[WhiteElo "2505"]
[BlackElo "2420"]
[Annotator "ChessBase"]
[PlyCount "113"]
[EventDate "2021.10.27"]
[EventType "swiss"]
[EventCountry "LAT"]
[Tiebreak "Cut1 Buchholz+Sonneborn-Berger (Swiss)"]
[SourceTitle "playchess.com"]
[Source "ChessBase"]
[SourceQuality "1"]
[TimeControl "40/6000+30:20/3000+30:900+30"]

1. d4 {[%emt 0:10:06]} Nf6 {[%emt 0:10:22]} 2. c4 {[%emt 0:00:29]} e6 {[%emt 0:
00:16]} 3. g3 {[%emt 0:00:31]} c5 {[%emt 0:00:24]} 4. d5 {[%emt 0:00:32]} exd5
5. cxd5 {[%emt 0:00:08]} g6 {[%emt 0:00:38]} 6. Nc3 {[%emt 0:00:13]} Bg7 {
[%emt 0:00:46]} 7. Bg2 {[%emt 0:00:39]} O-O {[%emt 0:00:27]} 8. Nf3 {[%emt 0:
00:14]} d6 {[%emt 0:00:30]} 9. O-O {[%emt 0:00:05]} Re8 {[%emt 0:00:19]} 10.
Bf4 {[%emt 0:00:57]} Ne4 {[%emt 0:01:19]} 11. Nxe4 {[%emt 0:00:20]} Rxe4 {
[%emt 0:00:05]} 12. Nd2 {[%emt 0:00:35]} Rb4 {[%emt 0:01:02]} 13. a3 {[%emt 0:
03:51]} Rxf4 {[%emt 0:01:19]} 14. gxf4 {[%emt 0:00:04]} Bxb2 {[%emt 0:00:14]}
15. Rb1 {[%emt 0:09:53]} Bg7 {[%emt 0:00:38]} 16. Re1 {[%emt 0:01:02]} Bh6 {
[%emt 0:02:05]} 17. e3 {[%emt 0:07:09]} Na6 {[%emt 0:02:35]} 18. Qf3 {[%emt 0:
08:36]} b6 {[%emt 0:09:14]} 19. Nc4 {[%emt 0:26:40]} Nc7 {[%emt 0:15:51]} 20.
e4 {[%emt 0:03:17]} Ne8 {[%emt 0:11:51]} 21. e5 {[%emt 0:15:57]} Bf5 {[%emt 0:
00:35]} 22. Rbd1 {[%emt 0:03:35]} Qh4 {[%emt 0:10:02]} 23. Ne3 {[%emt 0:00:29]}
Bxf4 {[%emt 0:25:59]} 24. Nxf5 {[%emt 0:00:27]} gxf5 {[%emt 0:00:15]} 25. e6 {
[%emt 0:01:36]} Bxh2+ {[%emt 0:06:23]} 26. Kf1 {[%emt 0:00:04]} Ng7 {[%emt 0:
00:36]} 27. Re2 {[%emt 0:03:34]} f6 {[%emt 0:01:41]} 28. Qb3 {[%emt 0:02:44]}
Be5 {[%emt 0:03:37]} 29. Qb5 {[%emt 0:01:07]} Qh5 {[%emt 0:02:56]} 30. Qc6 {
[%emt 0:05:45]} Re8 {[%emt 0:00:44]} 31. Qc7 {[%emt 0:01:46]} f4 {[%emt 0:01:
06]} 32. Rd3 {[%emt 0:00:08]} Qg6 {[%emt 0:00:44]} 33. Be4 {[%emt 0:02:08]} f5
{[%emt 0:00:19]} 34. Bg2 {[%emt 0:01:11]} Qf6 {[%emt 0:01:17]} 35. Qxa7 {
[%emt 0:00:30]} c4 {[%emt 0:00:23]} 36. Rd1 {[%emt 0:00:40]} c3 {[%emt 0:00:20]
} 37. Qxb6 {[%emt 0:00:14]} Qg6 {[%emt 0:01:09]} 38. Qb5 {[%emt 0:01:06]} Kh8 {
[%emt 0:00:36]} 39. Qd3 {[%emt 0:00:52]} Rg8 {[%emt 0:00:15]} 40. Qf3 {[%emt 0:
00:43]} Nh5 {[%emt 0:00:24]} 41. Rc2 {[%emt 0:43:11]} Nf6 {[%emt 0:22:22]} 42.
Re1 {[%emt 0:00:05]} Ng4 {[%emt 0:18:23]} 43. Qh3 {[%emt 0:02:01]} Qg7 {
[%emt 0:08:35]} 44. Bf3 {[%emt 0:04:15]} Ne3+ {[%emt 0:03:17]} 45. fxe3 {
[%emt 0:00:10]} Qg1+ {[%emt 0:00:14]} 46. Ke2 {[%emt 0:00:04]} Qxe3+ {[%emt 0:
00:10]} 47. Kd1 {[%emt 0:00:05]} Qd3+ {[%emt 0:00:30]} 48. Kc1 {[%emt 0:00:06]}
Bd4 {[%emt 0:00:33]} 49. Bg2 {[%emt 0:04:23]} Rg3 {[%emt 0:00:45]} 50. Qh6 {
[%emt 0:00:39]} Be3+ {[%emt 0:00:41]} 51. Kb1 {[%emt 0:00:26]} Rxg2 {[%emt 0:
00:41]} 52. Qf8+ {[%emt 0:00:22]} Rg8 {[%emt 0:00:05]} 53. Qf6+ {[%emt 0:00:31]
} Rg7 {[%emt 0:00:04]} 54. e7 {[%emt 0:00:43]} Qb5+ {[%emt 0:00:19]} 55. Ka1 {
[%emt 0:00:08]} Qe8 {[%emt 0:00:53]} 56. Rxc3 {[%emt 0:00:45]} Bd2 {[%emt 0:00:
40]} 57. Rc8 {[%emt 0:00:13]} 1-0

[Event "FIDE Womens Grand Swiss 2021"]
[Site "Riga"]
[Date "2021.10.28"]
[Round "2.5"]
[White "Vaishali R"]
[Black "Batsiashvili, Nino"]
[Result "0-1"]
[ECO "B12"]
[WhiteElo "2419"]
[BlackElo "2484"]
[Annotator "ChessBase"]
[PlyCount "88"]
[EventDate "2021.10.27"]
[EventType "swiss"]
[EventCountry "LAT"]
[Tiebreak "Cut1 Buchholz+Sonneborn-Berger (Swiss)"]
[SourceTitle "playchess.com"]
[Source "ChessBase"]
[SourceQuality "1"]
[TimeControl "40/6000+30:20/3000+30:900+30"]

1. e4 {[%emt 0:10:36]} c6 {[%emt 0:10:03]} 2. d4 {[%emt 0:00:07]} d5 {[%emt 0:
00:03]} 3. e5 {[%emt 0:00:08]} c5 {[%emt 0:00:04]} 4. Nf3 {[%emt 0:00:14]} cxd4
{[%emt 0:00:07]} 5. Qxd4 {[%emt 0:00:29]} Nc6 {[%emt 0:01:21]} 6. Qf4 {[%emt 0:
00:18]} e6 {[%emt 0:01:45]} 7. Nc3 {[%emt 0:00:52]} a6 {[%emt 0:05:16]} 8. Bd3
{[%emt 0:00:59]} Qc7 {[%emt 0:01:09]} 9. Qg3 {[%emt 0:07:19]} Nge7 {[%emt 0:05:
23]} 10. O-O {[%emt 0:04:10]} Ng6 {[%emt 0:02:21]} 11. Re1 {[%emt 0:04:12]} Bd7
{[%emt 0:03:51]} 12. h4 {[%emt 0:13:01]} Nb4 {[%emt 0:40:11]} 13. Bg5 {[%emt 0:
17:28]} h6 {[%emt 0:04:44]} 14. h5 {[%emt 0:03:22]} Ne7 {[%emt 0:07:30]} 15.
Bxe7 {[%emt 0:03:15]} Bxe7 {[%emt 0:00:08]} 16. Qxg7 {[%emt 0:00:48]} Rf8 {
[%emt 0:04:49]} 17. Ne2 {[%emt 0:08:30]} O-O-O {[%emt 0:00:22]} 18. Ned4 {
[%emt 0:00:57]} Qb6 {[%emt 0:01:13]} 19. Bf1 {[%emt 0:07:24]} Nc6 {[%emt 0:01:
25]} 20. c3 {[%emt 0:06:02]} Qxb2 {[%emt 0:07:28]} 21. Rab1 {[%emt 0:02:34]}
Qa3 {[%emt 0:00:18]} 22. Rb3 {[%emt 0:01:47]} Qc5 {[%emt 0:00:21]} 23. Reb1 {
[%emt 0:00:52]} Na5 {[%emt 0:01:29]} 24. R3b2 {[%emt 0:15:27]} Ba4 {[%emt 0:01:
38]} 25. Qxh6 {[%emt 0:00:45]} Rh8 {[%emt 0:00:31]} 26. Qf4 {[%emt 0:00:26]}
Rxh5 {[%emt 0:01:04]} 27. g4 {[%emt 0:01:08]} Rh7 {[%emt 0:02:50]} 28. Nf5 {
[%emt 0:00:47]} b5 {[%emt 0:01:59]} 29. Nxe7+ {[%emt 0:00:28]} Qxe7 {[%emt 0:
00:01]} 30. Rc1 {[%emt 0:00:33]} Rdh8 {[%emt 0:01:56]} 31. Bg2 {[%emt 0:00:22]}
Rg8 {[%emt 0:00:42]} 32. Rb4 {[%emt 0:00:18]} Rhg7 {[%emt 0:00:57]} 33. g5 {
[%emt 0:00:49]} Nc4 {[%emt 0:01:02]} 34. Rxa4 {[%emt 0:00:29]} bxa4 {[%emt 0:
00:02]} 35. Rb1 {[%emt 0:00:30]} Rxg5 {[%emt 0:00:35]} 36. Nxg5 {[%emt 0:00:08]
} Qxg5 {[%emt 0:00:02]} 37. Qxg5 {[%emt 0:00:52]} Rxg5 {[%emt 0:00:02]} 38. Rb4
{[%emt 0:00:30]} a3 {[%emt 0:00:40]} 39. f4 {[%emt 0:00:32]} Rg3 {[%emt 0:01:
28]} 40. Ra4 {[%emt 0:00:30]} a5 {[%emt 0:00:37]} 41. Kf2 {[%emt 0:50:24]} Rxc3
{[%emt 0:50:08]} 42. Bf1 {[%emt 0:00:05]} Kc7 {[%emt 0:03:10]} 43. f5 {[%emt 0:
00:00]} Kb6 {[%emt 0:00:00]} 44. fxe6 {[%emt 0:00:00]} fxe6 {[%emt 0:00:00]}
0-1

[Event "FIDE Womens Grand Swiss 2021"]
[Site "Riga"]
[Date "2021.10.28"]
[Round "2.6"]
[White "Garifullina, Leya"]
[Black "Paehtz, Elisabeth"]
[Result "0-1"]
[ECO "B30"]
[WhiteElo "2409"]
[BlackElo "2475"]
[Annotator "ChessBase"]
[PlyCount "100"]
[EventDate "2021.10.27"]
[EventType "swiss"]
[EventCountry "LAT"]
[Tiebreak "Cut1 Buchholz+Sonneborn-Berger (Swiss)"]
[SourceTitle "playchess.com"]
[Source "ChessBase"]
[SourceQuality "1"]
[TimeControl "40/6000+30:20/3000+30:900+30"]

1. e4 {[%emt 0:10:04]} c5 {[%emt 0:10:02]} 2. Nf3 {[%emt 0:00:07]} Nc6 {
[%emt 0:00:04]} 3. Bb5 {[%emt 0:00:14]} e6 {[%emt 0:00:03]} 4. Bxc6 {[%emt 0:
04:03]} bxc6 {[%emt 0:00:05]} 5. b3 {[%emt 0:00:06]} d6 {[%emt 0:00:03]} 6. e5
{[%emt 0:01:59]} f6 {[%emt 0:00:03]} 7. exd6 {[%emt 0:00:07]} Bxd6 {[%emt 0:00:
04]} 8. Nc3 {[%emt 0:00:36]} e5 {[%emt 0:01:52]} 9. Ne4 {[%emt 0:00:34]} Ne7 {
[%emt 0:01:32]} 10. Ba3 {[%emt 0:04:48]} O-O {[%emt 0:03:13]} 11. Qe2 {[%emt 0:
03:59]} Nd5 {[%emt 0:15:34]} 12. Nxd6 {[%emt 0:10:14]} Qxd6 {[%emt 0:00:17]}
13. Qc4 {[%emt 0:00:22]} Qc7 {[%emt 0:14:39]} 14. Bxc5 {[%emt 0:02:12]} Re8 {
[%emt 0:00:04]} 15. d3 {[%emt 0:14:06]} Be6 {[%emt 0:03:37]} 16. Qh4 {[%emt 0:
02:43]} e4 {[%emt 0:21:12]} 17. Nd2 {[%emt 0:15:30]} Qa5 {[%emt 0:10:26]} 18.
b4 {[%emt 0:02:40]} Nxb4 {[%emt 0:00:05]} 19. Bxb4 {[%emt 0:00:03]} Qxb4 {
[%emt 0:00:04]} 20. Qf4 {[%emt 0:01:29]} Bf7 {[%emt 0:08:36]} 21. O-O {[%emt 0:
08:16]} g5 {[%emt 0:00:04]} 22. a3 {[%emt 0:00:05]} Qa5 {[%emt 0:03:12]} 23.
Qe3 {[%emt 0:00:19]} exd3 {[%emt 0:00:16]} 24. Qxd3 {[%emt 0:00:03]} Rad8 {
[%emt 0:01:26]} 25. Nb3 {[%emt 0:00:05]} Rxd3 {[%emt 0:00:14]} 26. Nxa5 {
[%emt 0:00:01]} Rc3 {[%emt 0:00:06]} 27. Rab1 {[%emt 0:01:52]} Re5 {[%emt 0:02:
00]} 28. Nb7 {[%emt 0:01:58]} Rd5 {[%emt 0:00:25]} 29. h3 {[%emt 0:02:33]} Rxc2
{[%emt 0:03:53]} 30. Rfc1 {[%emt 0:01:26]} Bg6 {[%emt 0:00:05]} 31. Rxc2 {
[%emt 0:06:47]} Bxc2 {[%emt 0:00:04]} 32. Rb2 {[%emt 0:00:05]} Bd3 {[%emt 0:02:
36]} 33. Rd2 {[%emt 0:02:55]} Kf7 {[%emt 0:04:00]} 34. f3 {[%emt 0:01:21]} Ke7
{[%emt 0:03:01]} 35. Kf2 {[%emt 0:00:07]} h5 {[%emt 0:04:12]} 36. Nc5 {[%emt 0:
01:11]} Rxc5 {[%emt 0:00:02]} 37. Rxd3 {[%emt 0:00:05]} Rc2+ {[%emt 0:00:57]}
38. Kg3 {[%emt 0:04:08]} h4+ {[%emt 0:00:03]} 39. Kg4 {[%emt 0:00:04]} Ke6 {
[%emt 0:01:09]} 40. Re3+ {[%emt 0:00:47]} Kf7 {[%emt 0:00:04]} 41. g3 {[%emt 0:
52:52]} Rc4+ {[%emt 0:50:56]} 42. f4 {[%emt 0:00:45]} hxg3 {[%emt 0:00:05]} 43.
Re2 {[%emt 0:00:17]} Rxf4+ {[%emt 0:00:00]} 44. Kxg3 {[%emt 0:00:00]} Rc4 {
[%emt 0:00:00]} 45. Re3 {[%emt 0:00:00]} a5 {[%emt 0:00:00]} 46. Kf3 {[%emt 0:
00:00]} Kg6 {[%emt 0:00:00]} 47. Kg3 {[%emt 0:00:00]} a4 {[%emt 0:00:00]} 48.
Kf3 {[%emt 0:00:00]} Kf5 {[%emt 0:00:00]} 49. Kg3 {[%emt 0:00:00]} c5 {[%emt 0:
00:00]} 50. Kf3 {[%emt 0:00:00]} Rd4 {[%emt 0:00:00]} 0-1

[Event "FIDE Womens Grand Swiss 2021"]
[Site "Riga"]
[Date "2021.10.28"]
[Round "2.7"]
[White "Pogonina, Natalija"]
[Black "Sargsyan, Anna M."]
[Result "1-0"]
[ECO "A25"]
[WhiteElo "2467"]
[BlackElo "2402"]
[Annotator "ChessBase"]
[PlyCount "75"]
[EventDate "2021.10.27"]
[EventType "swiss"]
[EventCountry "LAT"]
[Tiebreak "Cut1 Buchholz+Sonneborn-Berger (Swiss)"]
[SourceTitle "playchess.com"]
[Source "ChessBase"]
[SourceQuality "1"]
[TimeControl "40/6000+30:20/3000+30:900+30"]

1. c4 {[%emt 0:10:06]} e5 {[%emt 0:10:34]} 2. Nc3 {[%emt 0:00:11]} Nc6 {
[%emt 0:01:30]} 3. g3 {[%emt 0:01:10]} f5 {[%emt 0:00:13]} 4. Bg2 {[%emt 0:00:
21]} Nf6 {[%emt 0:00:33]} 5. e3 {[%emt 0:01:00]} Be7 {[%emt 0:04:07]} 6. d4 {
[%emt 0:05:06]} d6 {[%emt 0:03:22]} 7. Nge2 {[%emt 0:05:57]} O-O {[%emt 0:00:
21]} 8. O-O {[%emt 0:00:37]} Qe8 {[%emt 0:03:28]} 9. Rb1 {[%emt 0:09:45]} a5 {
[%emt 0:07:13]} 10. Nb5 {[%emt 0:13:38]} Bd8 {[%emt 0:01:19]} 11. dxe5 {
[%emt 0:04:42]} dxe5 {[%emt 0:08:07]} 12. b3 {[%emt 0:00:27]} Be6 {[%emt 0:03:
31]} 13. Bb2 {[%emt 0:01:53]} Rf7 {[%emt 0:01:46]} 14. Nec3 {[%emt 0:03:28]}
Rd7 {[%emt 0:06:43]} 15. Qe2 {[%emt 0:00:44]} Nb4 {[%emt 0:02:59]} 16. a3 {
[%emt 0:05:46]} Nc6 {[%emt 0:02:43]} 17. Rfd1 {[%emt 0:03:29]} Rc8 {[%emt 0:08:
21]} 18. Rxd7 {[%emt 0:02:51]} Nxd7 {[%emt 0:01:33]} 19. Nd5 {[%emt 0:05:31]}
e4 {[%emt 0:05:15]} 20. f3 {[%emt 0:02:36]} exf3 {[%emt 0:08:26]} 21. Bxf3 {
[%emt 0:01:42]} Bf7 {[%emt 0:01:23]} 22. Rf1 {[%emt 0:04:00]} Nc5 {[%emt 0:03:
50]} 23. Bg2 {[%emt 0:01:42]} Nxb3 {[%emt 0:02:31]} 24. Qc2 {[%emt 0:06:52]}
Nc5 {[%emt 0:00:11]} 25. Qxf5 {[%emt 0:00:29]} Ne6 {[%emt 0:03:16]} 26. Kh1 {
[%emt 0:06:43]} Be7 {[%emt 0:04:23]} 27. Qg4 {[%emt 0:02:16]} h5 {[%emt 0:01:
09]} 28. Qf5 {[%emt 0:00:44]} Bd6 {[%emt 0:04:35]} 29. Bh3 {[%emt 0:05:33]} Rd8
{[%emt 0:02:12]} 30. Nf6+ {[%emt 0:04:01]} gxf6 {[%emt 0:00:07]} 31. Qxf6 {
[%emt 0:00:10]} Be5 {[%emt 0:00:07]} 32. Bxe5 {[%emt 0:00:16]} Nxe5 {[%emt 0:
00:06]} 33. Qxe5 {[%emt 0:00:14]} Ng7 {[%emt 0:02:53]} 34. Qf4 {[%emt 0:02:33]}
Qc6+ {[%emt 0:00:54]} 35. Bg2 {[%emt 0:00:04]} Qxc4 {[%emt 0:00:13]} 36. Nd4 {
[%emt 0:01:12]} c5 {[%emt 0:00:52]} 37. Qf6 {[%emt 0:00:20]} Rd5 {[%emt 0:00:
56]} 38. Qxf7+ {[%emt 0:00:12]} 1-0